bitfinex-derivatives/quotes_SOLF0:USTF0_20241021
["timestamp","ask_amount","ask_price","bid_price","bid_amount"]
[1729513155674,4.32,167.06,166.98,2.5528]
[1729513155873,7.3143,167.06,166.98,2.5528]
[1729513156467,4.32,167.06,166.98,2.5528]
[1729513157872,2.9944,167.05,167.02,2.9948]
[1729513161276,2.9944,167.05,166.98,2.5528]
[1729513161277,7.3143,167.06,167.0,2.9952]
[1729513161475,2.9943,167.06,166.98,2.5528]
[1729513161675,7.3143,167.06,166.98,2.5528]
[1729513161875,7.3143,167.06,167.02,2.9948]
[1729513165569,4.32,167.06,167.0,2.9952]
[1729513165768,6.8389,167.06,166.96,4.32]
[1729513166174,2.9947,167.04,166.96,4.32]
[1729513166375,2.9947,167.04,166.94,1.3543]
[1729513166576,6.8389,167.06,166.94,1.3543]
[1729513166781,2.9951,167.02,166.99,2.9953]
[1729513167086,7.3151,167.02,166.99,2.9953]
[1729513173384,4.32,167.02,166.94,1.3543]
[1729513175088,2.9952,167.01,166.98,2.9956]
[1729513175385,2.9952,167.01,166.99,2.9955]
[1729513175586,2.9946,167.04,166.94,1.3543]
[1729513175787,4.32,167.01,166.94,1.3543]
[1729513176686,4.32,167.01,167.0,2.9953]
[1729513183283,4.32,167.01,166.94,1.3543]
[1729513183489,2.9954,167.0,166.97,2.9958]
[1729513183792,4.32,167.01,166.94,1.3543]
[1729513183992,7.3152,167.01,166.98,2.9956]
[1729513188787,3.8223,167.06,166.94,1.3543]
[1729513188984,4.32,167.05,167.0,2.9952]
[1729513189994,2.9949,167.03,167.0,2.9952]
[1729513192096,2.995,167.02,167.0,2.9952]
[1729513192298,7.315,167.02,167.0,2.9952]
[1729513194894,7.315,167.02,166.94,1.3543]
[1729513195100,7.315,167.02,166.99,2.9954]
[1729513197298,4.32,167.02,166.94,1.3543]
[1729513197598,2.9954,167.0,166.89,8.9914]
[1729513197799,2.9954,167.0,166.97,2.9957]
[1729513198296,2.9955,166.99,166.96,2.9959]
[1729513198598,4.32,167.02,166.9,4.32]
[1729513198899,2.9954,167.0,166.97,2.9958]
[1729513204710,4.32,167.02,166.97,2.9958]
[1729513204907,2.9956,166.99,166.96,2.996]
[1729513205308,2.996,166.97,166.94,2.9963]
[1729513205510,5.95053689,166.97,166.94,2.9963]
[1729513207017,2.95453689,166.97,166.87,3.8918]
[1729513207216,2.9962,166.95,166.92,2.9966]
[1729513207517,6.04466873,166.95,166.92,2.9966]
[1729513207710,2.9962,166.95,166.92,2.9966]
[1729513208312,5.96398808,166.95,166.92,2.9966]
[1729513209119,5.96398808,166.95,166.93,2.9966]
[1729513209417,2.96778808,166.95,166.93,2.9966]
[1729513209716,2.9961,166.96,166.93,2.9966]
[1729513210217,2.98488398,166.96,166.87,1.2664]
[1729513210409,5.5541,166.97,166.94,2.9963]
[1729513211009,8.49914677,166.97,166.94,2.9963]
[1729513211419,2.996,166.96,166.94,2.9963]
[1729513212018,2.9962,166.95,166.92,2.9966]
[1729513215719,4.32,166.94,166.92,2.9966]
[1729513217418,5.50314677,166.97,166.87,1.2664]
[1729513217618,11.56924677,166.97,166.94,2.9963]
[1729513219121,8.57334677,166.97,166.94,2.9963]
[1729513219325,2.9961,166.96,166.94,2.9963]
[1729513219521,8.57334677,166.97,166.87,1.2664]
[1729513219713,8.57334677,166.97,166.92,2.9967]
[1729513220121,2.9964,166.95,166.92,2.9967]
[1729513224128,2.9964,166.95,166.93,2.9966]
[1729513224325,2.9961,166.96,166.93,2.9966]
[1729513229230,4.32,166.95,166.93,2.9966]
[1729513230830,7.3162,166.95,166.93,2.9966]
[1729513233840,4.32,166.95,166.93,2.9966]
[1729513234743,7.26504677,166.97,166.87,1.2664]
[1729513235240,2.9962,166.95,166.92,2.9967]
[1729513236730,7.26504677,166.97,166.87,1.2664]
[1729513236942,2.9966,166.93,166.9,2.997]
[1729513237143,7.3166,166.93,166.9,2.997]
[1729513239339,4.32,166.95,166.87,1.2664]
[1729513239740,4.32,166.95,166.93,2.9964]
[1729513239943,4.32,166.96,166.87,1.2664]
[1729513240138,4.32,166.96,166.88,4.32]
[1729513240539,4.32,166.96,166.89,2.5979]
[1729513240747,2.94504677,166.97,166.89,2.5979]
[1729513240944,4.32,166.97,166.95,2.9962]
[1729513241137,7.3092,166.97,166.89,2.5979]
[1729513242345,5.9851,166.97,166.94,2.9963]
[1729513242844,5.9851,166.97,166.89,2.5979]
[1729513242845,2.9892,166.97,166.89,2.5979]
[1729513243143,7.3157,166.98,166.95,2.9961]
[1729513243345,10.24210541,166.98,166.95,2.9961]
[1729513245244,5.92210541,166.98,166.95,2.9961]
[1729513245446,10.24210541,166.98,166.95,2.9961]
[1729513246742,7.24640541,166.98,166.96,2.9959]
[1729513248347,7.24640541,166.98,166.89,2.5979]
[1729513248849,2.9961,166.96,166.93,2.9964]
[1729513255554,7.24640541,166.98,166.92,2.9967]
[1729513255757,7.24640541,166.98,166.87,5.5664]
[1729513256457,2.9965,166.94,166.91,2.9968]
[1729513256643,4.3,166.94,166.87,1.2664]
[1729513257554,7.2965,166.94,166.91,2.9969]
[1729513258553,7.2965,166.94,166.9,2.997]
[1729513258554,2.9967,166.93,166.9,2.997]
[1729513258755,4.3,166.94,166.86,111.27607964]
[1729513259350,2.9964,166.94,166.91,2.9968]
[1729513259657,4.3,166.95,166.86,111.27607964]
[1729513260253,2.9964,166.94,166.88,2.9973]
[1729513260459,4.3,166.95,166.86,111.27607964]
[1729513260856,4.3,166.95,166.91,2.9968]
[1729513260857,2.9965,166.94,166.91,2.9968]
[1729513266969,2.9965,166.94,166.86,111.27607964]
[1729513267269,2.9965,166.94,166.92,2.9967]
[1729513268570,7.2963,166.95,166.92,2.9967]
[1729513268764,4.3,166.95,166.92,2.9967]
[1729513269969,2.9964,166.94,166.92,2.9967]
[1729513278178,7.2963,166.95,166.92,2.9967]
[1729513286689,2.92640541,166.98,166.97,2.9958]
[1729513286882,4.3,166.98,166.97,0.90364591]
[1729513287180,4.3,166.98,166.88,5.6593]
[1729513287181,7.30695838,166.98,166.88,5.6593]
[1729513287489,4.3,166.97,166.9,2.997]
[1729513287688,4.3,166.97,166.88,5.6593]
[1729513288981,7.331491,166.97,166.88,5.6593]
[1729513289982,7.331491,166.97,166.96,2.996]
[1729513293981,7.331491,166.97,166.88,5.6593]
[1729513294382,7.331491,166.97,166.88,1.3593]
[1729513294586,2.9965,166.94,166.91,2.9968]
[1729513294784,4.3,166.93,166.86,111.27607964]
[1729513295287,4.3,166.93,166.92,2.9967]
[1729513300888,4.3,166.93,166.86,111.27607964]
[1729513301082,4.3,166.93,166.9,2.997]
[1729513302487,7.2966,166.93,166.9,2.997]
[1729513309500,7.2966,166.93,166.83,1.2986]
[1729513309501,2.6396,166.96,166.85,2.9979]
[1729513309697,4.3,166.95,166.84,5.9964]
[1729513309903,4.3,166.95,166.85,1.50016084]
[1729513310199,4.3,166.95,166.86,4.3]
[1729513311497,4.3,166.95,166.93,2.9965]
[1729513313104,4.3,166.95,166.92,2.9966]
[1729513313105,7.2963,166.95,166.92,2.9966]
[1729513313296,4.3,166.95,166.92,2.9966]
[1729513313805,4.3,166.95,166.86,4.3]
[1729513314013,4.3,166.95,166.83,1.2986]
[1729513314200,1.3608,166.94,166.83,1.2986]
[1729513315308,2.9968,166.92,166.89,2.9972]
[1729513315500,4.3,166.91,166.89,2.9972]
[1729513320313,1.3254,166.96,166.83,1.2986]
[1729513320515,4.3,166.95,166.84,4.3]
[1729513320814,4.3,166.95,166.85,5.996]
[1729513321015,4.3,166.95,166.86,1.50011582]
[1729513321215,4.3,166.95,166.85,5.996]
[1729513321418,4.3,166.95,166.94,2.9964]
[1729513325218,4.3,166.95,166.85,5.996]
[1729513325420,4.3,166.95,166.94,2.9964]
[1729513326213,4.3,166.95,166.85,5.996]
[1729513326517,4.3,166.95,166.92,2.9967]
[1729513326715,4.3,166.95,166.85,5.996]
[1729513326914,4.3,166.95,166.94,2.9964]
[1729513330916,3.031491,166.97,166.96,2.996]
[1729513331119,4.3,166.98,166.89,4.3]
[1729513331313,7.3698318,166.98,166.9,3.8412]
[1729513331510,7.3698318,166.98,166.97,2.9958]
[1729513333117,3.0698318,166.98,166.97,2.9958]
[1729513339628,4.3,166.99,166.98,2.9957]
[1729513340029,4.3,166.99,166.9,9.8352]
[1729513340030,1.3151,167.01,166.85,5.9959]
[1729513340219,1.324,166.98,166.85,5.9959]
[1729513340422,1.324,166.98,166.86,1.3518]
[1729513340917,4.38901333,166.98,166.86,1.3518]
[1729513341130,2.9959,166.97,166.93,2.9965]
[1729513341323,4.3,166.96,166.93,2.9965]
[1729513341518,7.25376004,166.96,166.93,2.9965]
[1729513341822,1.2639,167.0,166.88,4.3]
[1729513342025,4.3,166.99,166.98,2.9955]
[1729513342328,4.3,166.99,166.9,2.4727]
[1729513343022,4.3,166.99,166.97,2.9957]
[1729513343331,4.3,166.99,166.91,5.9939]
[1729513343528,4.3,167.05,167.03,2.9947]
[1729513343825,2.95058934,167.04,166.94,111.21626732]
[1729513344622,1.3055,167.11,166.94,111.21626732]
[1729513344817,4.3,167.08,166.94,111.21626732]
[1729513345624,2.9942,167.07,167.03,2.9947]
[1729513347631,2.9944,167.06,167.01,2.995]
[1729513347830,4.3,167.08,167.01,2.995]
[1729513348623,4.3,167.08,166.98,1.2607]
[1729513348824,2.9943,167.06,167.02,2.9949]
[1729513349030,4.3,167.08,167.02,2.9949]
[1729513349329,2.9946,167.05,166.98,1.2607]
[1729513349634,4.3,167.04,166.98,1.2607]
[1729513349835,4.3,167.05,166.98,1.2607]
[1729513350029,4.3,167.05,167.02,2.9948]
[1729513350230,1.3291,167.09,166.98,1.2607]
[1729513350430,4.3,167.08,166.98,1.2607]
[1729513350733,4.3,167.08,166.98,2.5012]
[1729513351432,1.3291,167.09,166.98,2.5012]
[1729513351628,7.2941,167.07,166.98,2.5012]
[1729513352029,4.3,167.07,166.98,2.5012]
[1729513352429,2.9943,167.06,167.03,2.9947]
[1729513354838,7.2942,167.07,167.0,2.9952]
[1729513355036,4.3,167.07,166.98,2.5012]
[1729513355638,2.9942,167.06,167.03,2.9947]
[1729513357536,2.9946,167.04,167.01,2.9951]
[1729513357741,4.3,167.03,166.94,112.49676732]
[1729513358540,2.9954,167.0,166.94,112.49676732]
[1729513358747,4.3,166.99,166.94,111.21626732]
[1729513359132,7.2956,166.99,166.96,2.9959]
[1729513359538,10.27119637,166.99,166.96,2.9959]
[1729513360340,10.27119637,166.99,166.94,111.21626732]
[1729513360341,7.27559637,166.99,166.94,111.21626732]
[1729513361543,2.9957,166.98,166.94,114.21256732]
[1729513362332,7.27559637,166.99,166.94,114.21256732]
[1729513362541,2.9959,166.97,166.94,111.21626732]
[1729513363442,2.9959,166.97,166.94,114.21266732]
[1729513363642,2.9959,166.97,166.94,2.9964]
[1729513364951,7.27559637,166.99,166.87,5.5538]
[1729513365249,2.5625,166.98,166.87,1.2538]
[1729513366942,2.9963,166.95,166.91,2.9969]
[1729513367146,4.3,166.94,166.91,2.9969]
[1729513369945,4.3,166.94,166.87,1.2538]
[1729513370150,4.3,166.94,166.92,2.9967]
[1729513371551,2.5625,166.98,166.87,1.2538]
[1729513371753,7.2959,166.97,166.94,2.9963]
[1729513373551,4.3,166.97,166.94,2.9963]
[1729513373746,65.9772,167.02,166.87,1.2538]
[1729513373747,7.2949,167.03,166.98,2.9955]
[1729513373952,4.3,167.02,166.98,2.9955]
[1729513374147,4.3,167.01,166.89,4.3]
[1729513374455,2.93647169,167.0,166.97,2.9957]
[1729513374845,2.93647169,167.0,166.98,2.9957]
[1729513379255,2.93647169,167.0,166.89,4.3]
[1729513379448,2.93647169,167.0,166.99,2.9955]
[1729513381862,7.2951,167.01,166.9,5.9942]
[1729513382062,7.30785695,167.01,166.9,5.9942]
[1729513382764,7.30785695,167.01,166.89,4.3]
[1729513383264,2.9955,166.99,166.96,2.9959]
[1729513385563,3.00785695,167.01,167.0,2.9953]
[1729513385858,4.3,167.03,167.0,2.9953]
[1729513386060,7.2948,167.03,167.0,2.9953]
[1729513386258,10.35981333,167.03,167.0,2.9953]
[1729513392666,33.33014724,167.16,166.93,1.3404]
[1729513392667,2.9937,167.09,166.97,4.3]
[1729513392973,4.3,167.1,166.97,4.3]
[1729513393358,2.9941,167.07,166.97,4.3]
[1729513393769,4.3,167.06,166.97,4.3]
[1729513394067,4.3,167.06,167.03,2.9947]
[1729513397470,2.9944,167.05,167.02,2.9948]
[1729513397768,5.5614,167.06,167.02,2.9948]
[1729513398871,8.5558,167.06,167.02,2.9948]
[1729513401074,8.5558,167.06,166.96,4.3]
[1729513401270,5.5614,167.06,167.04,2.9946]
[1729513403373,4.3,167.06,166.96,4.3]
[1729513403675,4.3,167.06,167.05,2.9944]
[1729513403975,4.36,167.07,166.97,5.9917]
[1729513404977,4.36,167.07,167.05,2.9944]
[1729513405168,4.36,167.07,166.96,4.3]
[1729513405570,4.36,167.07,167.06,2.9942]
[1729513406778,2.9938,167.09,167.0,5.5943]
[1729513407083,7.3538,167.09,167.07,2.994]
[1729513407279,4.36,167.09,167.07,2.994]
[1729513410884,4.36,167.1,167.09,2.9937]
[1729513411288,4.36,167.1,167.0,8.1726]
[1729513412991,4.36,167.1,167.08,2.9937]
[1729513413685,7.3537,167.1,167.07,2.994]
[1729513414289,7.3537,167.1,167.0,4.36]
[1729513414486,7.3537,167.1,167.0,1.53317032]
[1729513414690,7.3537,167.1,167.0,4.36]
[1729513414890,7.3537,167.1,167.07,2.994]
[1729513415086,7.3537,167.1,167.0,4.36]
[1729513416697,7.3537,167.1,167.07,2.994]
[1729513417192,7.3537,167.1,166.99,8.28066381]
[1729513417995,2.9942,167.07,166.97,4.36]
[1729513418392,4.36,167.06,166.97,4.36]
[1729513418594,4.36,167.06,167.04,2.9945]
[1729513418802,4.36,167.06,166.97,4.36]
[1729513419894,4.36,167.06,167.05,2.9944]
[1729513420800,2.9946,167.04,166.97,4.36]
[1729513420997,2.99328743,167.04,166.97,4.36]
[1729513421199,4.36,167.06,166.97,4.36]
[1729513421397,4.36,167.06,167.04,2.9945]
[1729513421697,4.36,167.06,166.96,1.2731]
[1729513421897,2.6177,167.05,166.96,1.2731]
[1729513422594,4.36,167.06,166.96,1.2731]
[1729513423998,4.36,167.06,167.05,2.9944]
[1729513430001,2.9939,167.08,167.05,2.9944]
[1729513430200,2.6177,167.12,166.96,1.2731]
[1729513430601,4.36,167.11,166.96,1.2731]
[1729513430801,2.9935,167.1,166.96,1.2731]
[1729513431004,2.9935,167.1,166.98,5.9914]
[1729513431210,2.9935,167.1,166.99,4.36]
[1729513431403,4.36,167.11,167.02,2.9948]
[1729513431404,2.9939,167.09,167.02,2.9948]
[1729513431599,4.36,167.11,166.99,4.36]
[1729513432503,2.9939,167.08,167.05,2.9943]
[1729513432703,4.36,167.07,167.05,2.9943]
[1729513434909,4.36,167.07,167.06,2.9942]
[1729513449513,4.36,167.07,167.05,2.9943]
[1729513450115,7.3542,167.07,167.04,2.9945]
[1729513450514,7.3542,167.07,166.98,10.3514]
[1729513451123,2.9942,167.07,166.98,10.3514]
[1729513451320,7.3542,167.07,166.98,10.3514]
[1729513451813,7.3542,167.07,167.05,2.9944]
[1729513457718,2.6177,167.12,166.98,4.36]
[1729513457922,4.36,167.11,166.99,8.28870862]
[1729513458124,4.36,167.11,166.99,6.7896]
[1729513458531,2.9936,167.1,167.07,2.9939]
[1729513459225,4.36,167.11,167.07,2.9939]
[1729513459226,2.9938,167.09,167.07,2.9939]
[1729513459722,2.9938,167.09,167.06,2.9942]
[1729513460521,4.3,167.08,167.06,2.9942]
[1729513460723,4.3,167.08,167.07,2.9941]
[1729513464529,4.3,167.08,167.07,2.9941]
[1729513467525,1.3436,167.12,167.11,2.9933]
[1729513467732,4.3,167.12,167.02,4.3]
[1729513468032,4.3,167.12,167.03,2.80744461]
[1729513468229,4.3,167.12,167.04,1.49884461]
[1729513468529,4.3,167.12,167.05,1.49881854]
[1729513468730,4.3,167.12,167.03,1.3086]
[1729513468935,4.3,167.12,167.04,1.49879113]
[1729513469136,4.3,167.12,167.1,2.9934]
[1729513472631,4.3,167.12,167.11,2.9933]
[1729513472828,4.3,167.12,167.03,1.3086]
[1729513473733,4.3,167.12,167.1,2.9934]
[1729513474433,4.3,167.12,167.03,1.3086]
[1729513474739,2.6294,167.11,167.03,1.3086]
[1729513475434,2.9937,167.1,167.07,2.9939]
[1729513475641,2.9937,167.1,167.03,1.3086]
[1729513476833,2.9937,167.1,167.08,2.9938]
[1729513480938,5.6228,167.11,167.08,2.9938]
[1729513481335,5.6228,167.11,167.09,2.9937]
[1729513481842,4.3,167.11,167.1,2.9934]
[1729513482540,7.29694191,167.13,167.12,2.9932]
[1729513482732,4.3,167.13,167.12,2.9932]
[1729513485445,2.97625059,167.15,167.05,4.3]
[1729513485646,4.3,167.17,167.06,0.5557]
[1729513485837,3.0535713,167.17,167.07,1.49842539]
[1729513486041,7.2921,167.18,167.15,2.9925]
[1729513486440,2.94331676,167.18,167.09,4.3]
[1729513486635,4.2261,167.2,167.16,2.9923]
[1729513486834,4.3,167.19,167.1,1.2292]
[1729513487044,7.24721162,167.19,167.1,1.2292]
[1729513487842,7.24721162,167.19,167.12,2.993]
[1729513488049,7.24721162,167.19,167.1,1.2292]
[1729513488843,7.24721162,167.19,167.17,2.9922]
[1729513489437,2.94721162,167.19,167.1,1.2292]
[1729513489636,2.94721162,167.19,167.18,2.9921]
[1729513490351,7.2917,167.21,167.18,2.9921]
[1729513490745,10.21754503,167.21,167.18,2.9921]
[1729513493253,2.9918,167.2,167.17,2.9922]
[1729513495854,7.2918,167.2,167.17,2.9922]
[1729513498950,2.9921,167.18,167.13,2.993]
[1729513499253,4.3,167.2,167.1,5.5292]
[1729513499453,4.3,167.2,167.13,2.993]
[1729513499748,4.3,167.2,167.11,103.95667971]
[1729513500748,2.92584503,167.21,167.11,103.95667971]
[1729513500954,4.3,167.22,167.11,108.25667971]
[1729513501350,4.3,167.22,167.16,2.9923]
[1729513501351,2.992,167.19,167.16,2.9923]
[1729513502143,2.9922,167.18,167.14,2.9927]
[1729513502350,4.3,167.17,167.11,103.95667971]
[1729513503150,2.5412,167.16,167.11,103.95667971]
[1729513503757,2.9927,167.15,167.12,2.9931]
[1729513504952,2.5412,167.16,167.11,103.95667971]
[1729513505155,2.993,167.13,167.1,2.9933]
[1729513505350,7.293,167.13,167.1,2.9933]
[1729513509756,4.3,167.13,167.04,5.6066]
[1729513510060,4.3,167.13,167.12,2.9932]
[1729513511756,5.98996643,167.17,167.14,2.9926]
[1729513512063,4.3,167.17,167.05,5.9888]
[1729513512254,4.3,167.17,167.06,4.3]
[1729513512451,2.96489153,167.16,167.06,4.8552]
[1729513512656,4.3,167.17,167.06,4.8552]
[1729513512957,4.3,167.17,167.15,2.9925]
[1729513513157,4.3,167.17,167.06,4.8552]
[1729513513761,4.3,167.17,167.16,2.9924]
[1729513516952,7.2924,167.17,167.13,2.9928]
[1729513517161,8.573,167.17,167.1,4.3]
[1729513517862,8.573,167.17,167.14,2.9926]
[1729513519566,2.9926,167.15,167.12,2.9931]
[1729513520063,2.9925,167.16,167.13,2.993]
[1729513524262,6.906,167.17,167.07,4.32]
[1729513524454,9.8983,167.17,167.07,4.32]
[1729513525158,5.5983,167.17,167.07,4.32]
[1729513525363,4.32,167.16,167.14,2.9927]
[1729513526263,7.3125,167.16,167.14,2.9927]
[1729513526666,4.32,167.16,167.12,2.9931]
[1729513526854,2.9927,167.15,167.12,2.9931]
[1729513527660,2.9931,167.13,167.11,2.9933]
[1729513529364,4.32,167.16,167.11,2.9933]
[1729513529661,2.9929,167.14,167.11,2.9933]
[1729513530165,4.32,167.16,167.06,4.32]
[1729513530365,4.32,167.16,167.04,1.3066]
[1729513530564,4.32,167.16,167.04,5.6266]
[1729513530967,2.993,167.13,167.1,2.9934]
[1729513531170,4.32,167.12,167.04,5.6266]
[1729513532870,4.32,167.12,167.11,2.9933]
[1729513534765,4.32,167.12,167.04,5.6266]
[1729513535866,4.32,167.12,167.11,2.9933]
[1729513539267,3.9456,167.17,167.14,2.9927]
[1729513539268,6.938,167.17,167.14,2.9927]
[1729513539465,4.32,167.16,167.05,6.5435]
[1729513539870,4.32,167.16,167.14,2.9928]
[1729513540767,2.9927,167.15,167.05,6.5435]
[1729513541474,2.9927,167.15,167.12,2.9931]
[1729513543874,2.9927,167.15,167.05,6.5435]
[1729513544572,2.9927,167.15,167.12,2.9931]
[1729513546173,2.9927,167.15,167.08,2.9939]
[1729513546476,2.9927,167.15,167.05,10.8635]
[1729513548082,2.9927,167.15,167.12,2.993]
[1729513550578,2.9929,167.14,167.12,2.993]
[1729513550979,2.9929,167.14,167.05,10.8635]
[1729513550980,2.9929,167.14,167.11,2.9933]
[1729513552376,4.3,167.16,167.05,10.8635]
[1729513552580,9.8984,167.17,167.14,2.9927]
[1729513556488,2.93882853,167.18,167.05,4.8747]
[1729513556687,4.3,167.17,167.16,2.9924]
[1729513556882,7.28694269,167.17,167.16,2.9924]
[1729513573596,7.28694269,167.17,167.05,4.8747]
[1729513573796,10.27924269,167.17,167.15,2.9926]
[1729513574097,4.3,167.16,167.15,2.9926]
[1729513581518,4.3,167.16,167.07,5.9881]
[1729513581712,4.3,167.16,167.12,2.993]
[1729513581713,2.9928,167.15,167.12,2.993]
[1729513581913,2.9928,167.15,167.07,5.9881]
[1729513582218,5.6151,167.16,167.08,1.49833175]
[1729513582412,5.6151,167.16,167.09,1.49833175]
[1729513582717,5.6151,167.16,167.05,4.3]
[1729513582910,5.6151,167.16,167.06,3.89576547]
[1729513583113,5.6151,167.16,167.07,1.49837133]
[1729513583409,2.9928,167.14,167.1,2.9934]
[1729513583615,6.9669,167.16,167.05,4.3]
[1729513583912,6.9669,167.16,167.06,1.49844254]
[1729513584119,2.993,167.13,167.1,2.9933]
[1729513584313,6.9669,167.16,167.04,5.6066]
[1729513584513,6.9669,167.16,167.05,1.49849683]
[1729513584712,2.9933,167.12,167.09,2.9936]
[1729513585017,4.3,167.11,167.04,5.6066]
[1729513585317,4.3,167.11,167.05,1.49851859]
[1729513585506,4.3,167.11,167.06,1.49851859]
[1729513585712,4.3,167.11,167.04,1.3066]
[1729513586012,4.3,167.11,167.05,1.49851951]
[1729513586209,4.3,167.11,167.06,1.49851951]
[1729513586413,4.3,167.11,167.04,1.3066]
[1729513586610,4.3,167.11,167.05,1.49851951]
[1729513586809,4.3,167.11,167.09,2.9936]
[1729513589426,4.3,167.11,167.08,2.9938]
[1729513589626,4.3,167.11,167.01,4.3]
[1729513589823,2.9936,167.1,167.07,2.9939]
[1729513591117,2.9936,167.1,167.08,2.9938]
[1729513591929,4.3,167.11,167.05,2.9944]
[1729513591930,2.994,167.08,167.05,2.9944]
[1729513592120,4.3,167.07,167.05,2.9944]
[1729513592323,7.2705153,167.07,167.05,2.9944]
[1729513600629,7.2705153,167.07,166.95,5.9924]
[1729513600928,7.2705153,167.07,166.96,1.49918615]
[1729513601136,2.9947,167.04,167.01,2.995]
[1729513601326,4.3,167.03,167.01,2.995]
[1729513605639,4.3,167.03,166.93,4.3]
[1729513605640,2.995,167.02,166.99,2.9954]
[1729513605829,4.3,167.03,166.92,1.345]
[1729513606031,2.5085,167.02,166.92,1.345]
[1729513606234,2.9952,167.01,166.95,2.9962]
[1729513606431,2.9952,167.01,166.92,1.345]
[1729513606633,2.5085,167.02,166.92,1.345]
[1729513607932,5.5035,167.02,166.99,2.9955]
[1729513611539,2.5085,167.02,166.99,2.9955]
[1729513611740,2.9952,167.01,166.99,2.9955]
[1729513615635,2.5085,167.02,167.01,2.9951]
[1729513615841,6.8085,167.02,167.01,2.9951]
[1729513617039,2.9945,167.05,167.03,2.9947]
[1729513617246,4.3,167.04,167.03,2.9947]
[1729513617740,4.3,167.04,167.02,2.9948]
[1729513618641,4.3,167.04,167.03,2.9948]
[1729513624749,4.3,167.04,166.94,111.03270033]
[1729513625457,4.3,167.04,167.02,2.9948]
[1729513626043,2.9944,167.06,166.94,105.04020033]
[1729513626249,4.3,167.05,166.94,105.04020033]
[1729513626650,4.3,167.04,166.94,105.04020033]
[1729513627941,4.3,167.04,167.03,2.9948]
[1729513630445,2.9705153,167.07,166.98,1.2333]
[1729513630651,2.9939,167.08,167.06,2.9942]
[1729513630851,4.3,167.07,167.06,2.9942]
[1729513631051,7.34705416,167.07,167.06,2.9942]
[1729513635158,7.34705416,167.07,166.98,1.2333]
[1729513635762,2.9946,167.04,167.02,2.9949]
[1729513635961,4.3,167.03,167.02,2.9949]
[1729513637566,4.3,167.03,166.98,1.2333]
[1729513637763,4.3,167.03,166.94,100.74020033]
[1729513638258,4.3,167.03,166.89,1.2732]
[1729513638259,1.2937,167.02,166.89,1.2732]
[1729513638565,2.6083,167.02,166.89,1.2732]
[1729513638756,3.9052,167.02,166.89,1.2732]
[1729513639962,2.9957,166.98,166.95,2.9961]
[1729513640166,4.3,166.97,166.95,2.9961]
[1729513640361,7.27913014,166.97,166.95,2.9961]
[1729513644066,7.27913014,166.97,166.89,1.2732]
[1729513644466,1.2923,166.96,166.87,1.2826]
[1729513644767,1.2923,166.96,166.84,6.5523]
[1729513644768,2.9966,166.93,166.9,2.9971]
[1729513644962,4.3,166.92,166.9,2.9971]
[1729513646464,4.3,166.91,166.9,2.9971]
[1729513647578,2.9964,166.94,166.9,2.9971]
[1729513647767,4.3,166.91,166.9,2.9971]
[1729513651770,2.9964,166.94,166.9,2.9971]
[1729513651971,4.3,166.91,166.9,2.9971]